Workbook

Sheet INTRO
B3: Ora viva!
B5: Esta é uma INTRODUÇÃO à representação gráfica no Excel!
B7: O que podemos representar graficamente?
B9: Eis alguns exemplos:
B11: - uma função
B13: - um conjunto de pontos (bom para vermos se há, ou não, relação entre duas variáveis!)
B15: - um gráfico em que as abcissas são categorias (p.ex., os meses do ano)
B17: - um gráfico de distribuição circular
B19: - um gráfico com um eixo principal e um eixo secundário nas ordenadas

Sheet Função
E2: 2x2 ; x >= 0
D3: Considere a função f(x) =
E4: - 2x2 ; x < 0
B6: Represente graficamente f(x) no domínio [-10; 10].
C9: x | D9: f(x)
C11: =-10 -> -10 | D11: =IF(C11<0,-2*C11^2,2*C11^2) -> -200.00
C12: =C11+0.1 -> -9.9 | D12: =IF(C12<0,-2*C12^2,2*C12^2) -> -196.02
C13: =C12+0.1 -> -9.8 | D13: =IF(C13<0,-2*C13^2,2*C13^2) -> -192.08
C14: -9.7 | D14: -188.18
C15: -9.6 | D15: -184.32
C16: -9.5 | D16: -180.50
C17: -9.4 | D17: -176.72
C18: -9.3 | D18: -172.98
C19: -9.2 | D19: -169.28
C20: -9.1 | D20: -165.62
C21: -9 | D21: -162.00
C22: -8.9 | D22: -158.42
C23: -8.8 | D23: -154.88
C24: -8.7 | D24: -151.38
C25: -8.6 | D25: -147.92
C26: -8.5 | D26: -144.50
C27: -8.4 | D27: -141.12
C28: -8.3 | D28: -137.78
C29: -8.2 | D29: -134.48
C30: -8.1 | D30: -131.22
C31: -8 | D31: -128.00
C32: -7.9 | D32: -124.82
C33: -7.8 | D33: -121.68
C34: -7.7 | D34: -118.58
C35: -7.6 | D35: -115.52
C36: -7.5 | D36: -112.50
C37: -7.4 | D37: -109.52
C38: -7.3 | D38: -106.58
C39: -7.2 | D39: -103.68
C40: -7.1 | D40: -100.82
C41: -7 | D41: -98.00
C42: -6.9 | D42: -95.22
C43: -6.8 | D43: -92.48
C44: -6.7 | D44: -89.78
C45: -6.6 | D45: -87.12
C46: -6.5 | D46: -84.50
C47: -6.4 | D47: -81.92
C48: -6.3 | D48: -79.38
C49: -6.2 | D49: -76.88
C50: -6.1 | D50: -74.42
C51: -6 | D51: -72.00
C52: -5.9 | D52: -69.62
C53: -5.8 | D53: -67.28
C54: -5.7 | D54: -64.98
C55: -5.6 | D55: -62.72
C56: -5.5 | D56: -60.50
C57: -5.4 | D57: -58.32
C58: -5.3 | D58: -56.18
C59: -5.2 | D59: -54.08
C60: -5.1 | D60: -52.02
C61: -5 | D61: -50.00
C62: -4.9 | D62: -48.02
C63: -4.8 | D63: -46.08
C64: -4.7 | D64: -44.18
C65: -4.6 | D65: -42.32
C66: -4.5 | D66: -40.50
C67: -4.4 | D67: -38.72
C68: -4.3 | D68: -36.98
C69: -4.2 | D69: -35.28
C70: -4.1 | D70: -33.62
C71: -4 | D71: -32.00
C72: -3.9 | D72: -30.42
C73: -3.8 | D73: -28.88
C74: -3.7 | D74: -27.38
C75: -3.6 | D75: -25.92
C76: -3.5 | D76: -24.50
C77: =C76+0.1 -> -3.4 | D77: =IF(C77<0,-2*C77^2,2*C77^2) -> -23.12
C78: -3.3 | D78: -21.78
C79: -3.2 | D79: -20.48
C80: -3.1 | D80: -19.22
C81: -3 | D81: -18.00
C82: -2.9 | D82: -16.82
C83: -2.8 | D83: -15.68
C84: -2.7 | D84: -14.58
C85: -2.6 | D85: -13.52
C86: -2.5 | D86: -12.50
C87: -2.4 | D87: -11.52
C88: -2.3 | D88: -10.58
C89: -2.2 | D89: -9.68
C90: -2.1 | D90: -8.82
C91: -2 | D91: -8.00
C92: -1.9 | D92: -7.22
C93: -1.8 | D93: -6.48
C94: -1.7 | D94: -5.78
C95: -1.6 | D95: -5.12
C96: -1.5 | D96: -4.50
C97: -1.4 | D97: -3.92
C98: -1.3 | D98: -3.38
C99: -1.2 | D99: -2.88
C100: -1.1 | D100: -2.42
C101: -1 | D101: -2.00
C102: -0.9 | D102: -1.62
C103: -0.8 | D103: -1.28
C104: -0.7 | D104: -0.98
C105: -0.6 | D105: -0.72
C106: -0.5 | D106: -0.50
C107: -0.4 | D107: -0.32
C108: -0.3 | D108: -0.18
C109: -0.2 | D109: -0.08
C110: -0.1 | D110: -0.02
C111: -0.0 | D111: -0.00
C112: 0.1 | D112: 0.02
C113: 0.2 | D113: 0.08
C114: 0.3 | D114: 0.18
C115: 0.4 | D115: 0.32
C116: 0.5 | D116: 0.50
C117: 0.6 | D117: 0.72
C118: 0.7 | D118: 0.98
C119: 0.8 | D119: 1.28
C120: 0.9 | D120: 1.62
C121: 1 | D121: 2.00
C122: 1.1 | D122: 2.42
C123: 1.2 | D123: 2.88
C124: 1.3 | D124: 3.38
C125: 1.4 | D125: 3.92
C126: 1.5 | D126: 4.50
C127: 1.6 | D127: 5.12
C128: 1.7 | D128: 5.78
C129: 1.8 | D129: 6.48
C130: 1.9 | D130: 7.22
C131: 2 | D131: 8.00
C132: 2.1 | D132: 8.82
C133: 2.2 | D133: 9.68
C134: 2.3 | D134: 10.58
C135: 2.4 | D135: 11.52
C136: 2.5 | D136: 12.50
C137: 2.6 | D137: 13.52
C138: 2.7 | D138: 14.58
C139: 2.8 | D139: 15.68
C140: 2.9 | D140: 16.82
C141: =C140+0.1 -> 3 | D141: =IF(C141<0,-2*C141^2,2*C141^2) -> 18.00
C142: 3.1 | D142: 19.22
C143: 3.2 | D143: 20.48
C144: 3.3 | D144: 21.78
C145: 3.4 | D145: 23.12
C146: 3.5 | D146: 24.50
C147: 3.6 | D147: 25.92
C148: 3.7 | D148: 27.38
C149: 3.8 | D149: 28.88
C150: 3.9 | D150: 30.42
C151: 4 | D151: 32.00
C152: 4.1 | D152: 33.62
C153: 4.2 | D153: 35.28
C154: 4.3 | D154: 36.98
C155: 4.4 | D155: 38.72
C156: 4.5 | D156: 40.50
C157: 4.6 | D157: 42.32
C158: 4.7 | D158: 44.18
C159: 4.8 | D159: 46.08
C160: 4.9 | D160: 48.02
C161: 5 | D161: 50.00
C162: 5.1 | D162: 52.02
C163: 5.2 | D163: 54.08
C164: 5.3 | D164: 56.18
C165: 5.4 | D165: 58.32
C166: 5.5 | D166: 60.50
C167: 5.6 | D167: 62.72
C168: 5.7 | D168: 64.98
C169: 5.8 | D169: 67.28
C170: 5.9 | D170: 69.62
C171: 6 | D171: 72.00
C172: 6.1 | D172: 74.42
C173: 6.2 | D173: 76.88
C174: 6.3 | D174: 79.38
C175: 6.4 | D175: 81.92
C176: 6.5 | D176: 84.50
C177: 6.6 | D177: 87.12
C178: 6.7 | D178: 89.78
C179: 6.8 | D179: 92.48
C180: 6.9 | D180: 95.22
C181: 7 | D181: 98.00
C182: 7.1 | D182: 100.82
C183: 7.2 | D183: 103.68
C184: 7.3 | D184: 106.58
C185: 7.4 | D185: 109.52
C186: 7.5 | D186: 112.50
C187: 7.6 | D187: 115.52
C188: 7.7 | D188: 118.58
C189: 7.8 | D189: 121.68
C190: 7.9 | D190: 124.82
C191: 8 | D191: 128.00
C192: 8.1 | D192: 131.22
C193: 8.2 | D193: 134.48
C194: 8.3 | D194: 137.78
C195: 8.4 | D195: 141.12
C196: 8.5 | D196: 144.50
C197: 8.6 | D197: 147.92
C198: 8.7 | D198: 151.38
C199: 8.8 | D199: 154.88
C200: 8.9 | D200: 158.42
C201: 9 | D201: 162.00
C202: 9.1 | D202: 165.62
C203: 9.2 | D203: 169.28
C204: 9.3 | D204: 172.98
C205: =C204+0.1 -> 9.4 | D205: =IF(C205<0,-2*C205^2,2*C205^2) -> 176.72
... 6 more rows

Sheet Dispersão
B3: Scatter Plot - Diagrama de Dispersão
B6: X | C6: Y | E6: Haverá relação entre X e Y, ou serão independentes?
B7: 4.54 | C7: 5.61
B8: 1.7 | C8: 1.29
B9: 1.48 | C9: 1.27
B10: 8.06 | C10: 16.8
B11: 2.46 | C11: 3
B12: 3.86 | C12: 5.02
B13: 1.1 | C13: 0.72
B14: 7.97 | C14: 16.27
B15: 1.68 | C15: 1.42
B16: 1.57 | C16: 1.5
B17: 7.75 | C17: 15.57
B18: 0.43 | C18: 0.28
B19: 5.46 | C19: 8.43
B20: 0.04 | C20: 0.08
B21: 4.38 | C21: 6.37
B22: 9.42 | C22: 18.24
B23: 3.05 | C23: 3.25
B24: 4.66 | C24: 7.2
B25: 8.25 | C25: 15.34
B26: 9.01 | C26: 15.75
B27: 8.21 | C27: 14.99
B28: 6.73 | C28: 11.31
B29: 2.9 | C29: 3.66
B30: 5.78 | C30: 8.91
B31: 3.93 | C31: 5.76
B32: 0.79 | C32: 0.51
B33: 5.77 | C33: 10.39
B34: 7.25 | C34: 12.28
B35: 0.76 | C35: 0.53

Sheet Categorias
D3: Vendas
C4: Primavera | D4: 20435
C5: Verão | D5: 22571
C6: Outono | D6: 17936
C7: Inverno | D7: 16821

Sheet Circular
D4: Vendas
C5: Primavera | D5: 20435
C6: Verão | D6: 22571
C7: Outono | D7: 17936
C8: Inverno | D8: 16821

Sheet Extra
C3: Tempo (h) | D3: Espessura do biofilme (mm)
C4: 0 | D4: 0
C5: 36 | D5: 0.2
C6: 48 | D6: 0.5
C7: 72 | D7: 0.6
C8: 96 | D8: 0.8
C10: Represente um gráfico de dispersão.
C11: Para facilitar a interpretação, una os pontos com uma linha.
C13: Para inserir um título no eixo xx:
C14: 1) Clique no gráfico
C15: 2) Separador Ferramentas de Gráfico
C16: 3) Estrutura > Adicionar Elemento de Gráfico
C17: 4) Título dos eixos
C22: X: Tempo | D22: Y1: Espessura do biofilme (mm) | E22: Y2: Capacidade Elétrica (pF)
C23: (h)
C24: 0 | D24: 0 | E24: 2.4
C25: 36 | D25: 0.2 | E25: 2.2
C26: 48 | D26: 0.5 | E26: 2
C27: 72 | D27: 0.6 | E27: 1.8
C28: 96 | D28: 0.8 | E28: 1.6
C32: Para inserir a 2ª série de dados no 1º gráfico:
C33: 1) Clique no 1º gráfico com o botão do lado direito do rato
C34: 2) Escolha Selecionar Dados
C35: 3) Adicionar
C36: 4) Indicar o nome da nova série, as abcissas e as ordenadas
C38: Para inserir um eixo secundário das ordenadas, associado à série Y2:
C39: 1) Clique num ponto da série.
C40: 2) Separador Ferramentas de Gráfico
C41: 3) Formatar > Formatar Seleção
C42: 4) Selecionar Eixo Secundário
C44: Para inserir títulos nos 3 eixos:
C45: 1) Clique no gráfico
C46: 2) Separador Ferramentas de Gráfico
C47: 3) Estrutura > Adicionar Elemento de Gráfico
C48: 4) Título dos eixos
